[Event "84th Georgian Championship 2025"]
[Site "Tbilisi"]
[Date "2025.02.03"]
[Round "1.1"]
[White "Mchedlishvili, Mikheil"]
[Black "Gagunashvili, Merab"]
[Result "1/2-1/2"]
[Annotator "TA"]
[ECO "C01"]
[WhiteElo "2568"]
[BlackElo "2541"]
[PlyCount "25"]
[EventDate "2025.02.03"]
[EventType "tourn"]
[EventCountry "GEO"]
[SourceTitle "playchess.com"]
[Source "ChessBase"]
[SourceQuality "1"]
[TimeControl "40/5400+30:1800+30"]

{[%evp 17,25,25,33,24,35,16,22,14,22,12]} 1. e4 {[%emt 0:00:06]} e5 {[%emt 0:00:15]} 2. Nf3 {[%emt 0:00:21]} Nf6 {[%emt 0:00:16]} 3. Nxe5 {[%emt 0:01:50]} d6 {[%emt 0:00:05]} 4. Nf3 {[%emt 0:00:35]} Nxe4 {[%emt 0:00:14]} 5. d3 {[%emt 0:01:23]} Nf6 {[%emt 0:00:31]} 6. d4 {[%emt 0:00:33]} d5 {[%emt 0:00:56]} 7. Bd3 {[%emt 0:00:30]} Bd6 {[%emt 0:00:34]} 8. Qe2+ {[%emt 0:00:47]} Qe7 {[%emt 0:01:13]} 9. Qxe7+ {[%emt 0:00:54]} Bxe7 {[%emt 0:00:39]} 10. O-O {[%emt 0:01:00] C01: French: Exchange Variation.} O-O {[%emt 0:01:08]} 11. c3 {[%emt 0:00:50]} Re8 $146 {[%emt 0:01:16]} (11... Bd6 12. Re1 Re8 13. Rxe8+ Nxe8 14. Bg5 Bg4 15. Nbd2 Nd7 16. Re1 Bxf3 17. Nxf3 Nef6 18. Bxf6 Nxf6 19. Kf1 Kf8 {½-½ Vanczak,T (2350)-Papp,L (2403) Budapest FS11 GM 2020 (1)}) 12. Bg5 {[%emt 0:00:36]} h6 {[%emt 0:03:06]} 13. Bh4 {[%emt 1:27:35] Not much happened in this game.   Weighted Error Value: White=0.12 (very precise) /Black=0.08 (flawless)} 1/2-1/2

[Event "84th Georgian Championship 2025"]
[Site "Tbilisi"]
[Date "2025.02.03"]
[Round "1.2"]
[White "Paichadze, Luka"]
[Black "Quparadze, Giga"]
[Result "1/2-1/2"]
[Annotator "TA"]
[ECO "B22"]
[WhiteElo "2532"]
[BlackElo "2537"]
[PlyCount "119"]
[EventDate "2025.02.03"]
[EventType "tourn"]
[EventCountry "GEO"]
[SourceTitle "playchess.com"]
[Source "ChessBase"]
[SourceQuality "1"]
[TimeControl "40/5400+30:1800+30"]

{[%evp 18,119,46,31,44,43,40,41,72,64,93,70,92,97,98,71,71,65,66,39,68,50,58,33,40,31,46,35,37,25,23,6,21,30,25,29,87,83,138,143,139,149,204,95,93,92,104,78,82,70,77,74,78,78,80,81,83,66,97,97,91,91,100,0,0,0,0,0,0,0,0,0,0,0,0,0,0,0,0,0,0,0,0,0,0,0,0,0,76,76,76,76,76,76,104,78,104,0,8,17,59,59,59,59]} 1. e4 {[%emt 0:04:01]} c5 {[%emt 0:00:05]} 2. c3 {[%emt 0:00:04]} d5 {[%emt 0:00:07]} 3. exd5 {[%emt 0:00:06]} Qxd5 {[%emt 0:00:05]} 4. d4 {[%emt 0:00:05]} Nf6 {[%emt 0:00:26]} 5. Nf3 {[%emt 0:00:08]} e6 {[%emt 0:00:11]} 6. Bd3 {[%emt 0:01:42]} Nc6 {[%emt 0:00:11]} 7. O-O {[%emt 0:00:24]} Be7 {[%emt 0:00:33]} 8. dxc5 {[%emt 0:00:18]} Qxc5 $1 {[%emt 0:01:09][%mdl 4] now scores much better than the old 8...Bxc5.} 9. Nbd2 {[%emt 0:02:09]} O-O {[%emt 0:00:19]} 10. Qe2 {[%emt 0:00:37]} Qh5 {[%emt 0:00:32] B22: Sicilian: 2 c3.} 11. Ne4 {[%emt 0:03:18]} Nxe4 {[%emt 0:00:17]} 12. Bxe4 {[%emt 0:02:20]} Bd6 $146 {[%emt 0:02:27][%cal Od6h2]} (12... Bd7 13. Re1 Bd6 14. Qd1 f5 15. Bc2 Rf6 16. Qxd6 Rg6 17. Bd1 e5 18. Qxd7 Rd8 19. Nxe5 Rxd7 20. Bxh5 Re6 21. Bf4 Nxe5 22. Rxe5 Rxe5 23. Bxe5 Rd2 24. Rd1 {1-0 Kostolansky,S (2393)-Gasimov,P (2337) EU-Cup Online Gr-G rapid 2021 (1.3)}) 13. h3 {[%emt 0:07:55]} Ne5 {[%emt 0:07:20]} 14. Bf4 {[%emt 0:07:58]} Nxf3+ {[%emt 0:00:10]} 15. Bxf3 {[%emt 0:00:04]} Qc5 {[%emt 0:00:05]} 16. Bxd6 {[%emt 0:02:05]} Qxd6 {[%emt 0:02:42]} 17. Rad1 {[%emt 0:01:57]} Qc7 {[%emt 0:00:06]} 18. Rfe1 {[%emt 0:05:49]} Rb8 {[%emt 0:02:49]} 19. Rd4 {[%emt 0:01:33]} Bd7 {[%emt 0:01:33]} 20. Qe5 {[%emt 0:11:29]} Rfc8 {[%emt 0:01:40]} 21. Rd6 {[%emt 0:08:25]} Be8 {[%emt 0:00:13]} 22. Re4 {[%emt 0:01:58]} Qc5 {[%emt 0:01:14]} 23. Qg3 {[%emt 0:02:52]} Rd8 {[%emt 0:02:19]} 24. Rdd4 {[%emt 0:04:58][%cal Bd6d4,Bd4e4,Be4e5][%mdl 32]} Bc6 {[%emt 0:00:38]} (24... Qe7 {simplifies} 25. Rc4 Rbc8 26. Rxc8 Rxc8 27. Rd4 b6) 25. Re3 {[%emt 0:09:50]} Bxf3 {[%emt 0:02:39]} 26. Rxf3 {[%emt 0:00:07]} e5 {[%emt 0:00:41] [#]} (26... Rbc8 $11) 27. Re4 $1 $16 {[%emt 0:02:08]} Qd5 {[%emt 0:16:47]} (27... Qb5 $142) 28. Rxe5 {[%emt 0:01:57]} Qxa2 {[%emt 0:01:57]} 29. Re7 {[%emt 0:00:28] Active counter play!} h6 {[%emt 0:00:44] [#]} (29... Rf8 $16 30. Qe5 Rbd8) 30. Qc7 {[%emt 0:03:18]} (30. Qe5 $1 $18 {Threatens to win with Kh2.} Rf8 31. Kh2) 30... Rd1+ {[%emt 0:04:04]} 31. Kh2 {[%emt 0:00:05][%cal Rf3f7]} Rf8 {[%emt 0:00:04]} 32. Qxb7 {[%emt 0:02:54][%cal Ob2b4]} Qb1 {[%emt 0:00:04] and ...Rh1+ should not be overlooked} 33. Qe4 {[%emt 0:05:12]} (33. Rfxf7 $2 Rh1+ 34. Kg3 Qg6+ 35. Kf3 Rxf7+ $19 (35... Qxf7+ $2 36. Rxf7 Rxf7+ 37. Qxf7+ Kxf7 38. Ke2 $19)) 33... Qxb2 {[%emt 0:00:06] [#]} 34. Rexf7 $1 {[%emt 0:05:51][%csl Gf3][%cal Rf7f8]} Qb8+ {[%emt 0:00:08]} 35. R7f4 {[%emt 0:00:32]} Rxf4 {[%emt 0:01:14]} 36. Rxf4 {[%emt 0:00:12][%mdl 4096] Endgame KQR-KQR. White is a pawn up.} (36. Qxf4 $6 Qxf4+ 37. Rxf4 Rc1 $15) 36... Qd6 {[%emt 0:06:18]} 37. c4 {[%emt 0:02:31][%cal Oc4c5]} Re1 {[%emt 0:01:02]} 38. Qa8+ {[%emt 0:00:52]} (38. Qxe1 Qxf4+ 39. g3 Qxc4 $15) 38... Kh7 {[%emt 0:00:05]} 39. g3 {[%emt 0:00:08]} Qd3 {[%emt 0:01:21]} 40. Rf8 {[%emt 0:00:00]} (40. Qxa7 {is a self mate.} Qf1) (40. h4 $16) 40... Qxc4 $11 {[%emt 0:00:00]} 41. h4 {[%emt 0:15:46][%cal Oh4h5]} (41. Qxa7 Qf1 $19) 41... Qe4 {[%emt 0:01:09]} 42. Qxe4+ {[%emt 0:00:13]} (42. Qxa7 $2 Qh1#) 42... Rxe4 {[%emt 0:00:05] KR-KR} 43. Ra8 {[%emt 0:00:29]} Re7 {[%emt 0:02:03]} 44. h5 {[%emt 0:00:07]} Re5 {[%emt 0:00:11]} 45. g4 {[%emt 0:00:26]} a5 {[%emt 0:00:04]} 46. Kg3 {[%emt 0:00:35]} Rb5 {[%emt 0:00:02]} 47. f3 {[%emt 0:00:27][%cal Bf2f3,Bf3f4,Bf4g5,Bg5g6][%mdl 32]} Rc5 {[%emt 0:00:13]} 48. Ra7 {[%emt 0:01:14]} Kg8 {[%emt 0:00:07]} 49. f4 {[%emt 0:00:27]} Rc3+ {[%emt 0:00:12]} 50. Kf2 {[%emt 0:00:08]} Ra3 {[%emt 0:00:15]} 51. g5 {[%emt 0:01:08]} hxg5 {[%emt 0:01:52]} 52. fxg5 {[%emt 0:17:10] g6 would kill now.} Rc3 {[%emt 0:00:11]} (52... Kf8 $11 {remains equal.}) 53. g6 $16 {[%emt 0:00:00]} Rc8 {[%emt 0:01:03] Inhibits Ra8.} 54. Rxa5 {[%emt 0:00:00]} Rf8+ {[%emt 0:00:11]} 55. Kg3 {[%emt 0:00:00]} Rb8 {[%emt 0:00:15]} 56. Kf4 {[%emt 0:00:00]} Rf8+ {[%emt 0:00:03]} 57. Rf5 {[%emt 0:00:00]} (57. Kg4 $16) 57... Rxf5+ $11 {[%emt 0:00:59]} 58. Kxf5 {[%emt 0:00:00]} Kh8 {[%emt 0:00:04]} 59. Ke6 {[%emt 0:00:00]} Kg8 {[%emt 0:00:04]} 60. Ke5 {[%emt 0:04:00] Blacks defense is rewarded with a draw.   Weighted Error Value: White=0.15 (very precise) /Black=0.13 (very precise)   Mistake:       	White=3     	Black=4      Inaccurate:     	White=1     	Black=7      OK:         	White=16    	Black=22     Best:        	White=1     	Black=5      Strong:       	White=1     	---} 1/2-1/2

[Event "84th Georgian Championship 2025"]
[Site "Tbilisi"]
[Date "2025.02.03"]
[Round "1.3"]
[White "Nigalidze, Gaioz"]
[Black "Tutisani, Noe"]
[Result "1/2-1/2"]
[Annotator "TA"]
[ECO "B51"]
[WhiteElo "2378"]
[BlackElo "2439"]
[PlyCount "34"]
[EventDate "2025.02.03"]
[EventType "tourn"]
[EventCountry "GEO"]
[SourceTitle "playchess.com"]
[Source "ChessBase"]
[SourceQuality "1"]
[TimeControl "40/5400+30:1800+30"]

{[%evp 9,34,12,13,18,8,0,0,0,6,0,0,0,12,8,6,9,5,0,0,0,14,0,0,0,8,0,0]} 1. e4 {[%emt 0:00:05]} c5 {[%emt 0:00:07]} 2. Nf3 {[%emt 0:00:11]} d6 {[%emt 0:00:08]} 3. d4 {[%emt 0:00:10]} cxd4 {[%emt 0:00:11]} 4. Bb5+ {[%emt 0:00:46]} Nd7 {[%emt 0:00:28]} 5. Qxd4 {[%emt 0:00:23]} a6 {[%emt 0:00:07] The position is equal.} 6. Be2 {[%emt 0:00:11] B51: Sicilian: Moscow Variation (3 Bb5+) without 3...Bd7.} Ngf6 {[%emt 0:00:07]} 7. O-O {[%emt 0:00:27]} e5 {[%emt 0:00:08]} 8. Qe3 {[%emt 0:00:06]} Ng4 {[%emt 0:00:11]} 9. Qd2 {[%emt 0:00:06]} Ngf6 {[%emt 0:00:05]} 10. Nc3 {[%emt 0:00:08]} Be7 $146 {[%emt 0:00:05]} (10... Nc5 11. Rd1 Ncxe4 12. Nxe4 Nxe4 13. Qe3 d5 14. Nxe5 Be6 15. Nd3 Bd6 16. Qd4 O-O {½-½ Borges,J (2298)-Lisak,J (2168) Champion's League 2021/C4 email}) 11. Rd1 {[%emt 0:00:11]} O-O {[%emt 0:00:07]} 12. a4 {[%emt 0:00:05]} Nc5 {[%emt 0:00:05]} 13. Qe3 {[%emt 0:00:11]} Ng4 {[%emt 0:00:07]} 14. Qd2 {[%emt 0:00:07]} Nf6 {[%emt 0:00:04]} 15. Qe3 {[%emt 0:00:08]} Ng4 {[%emt 0:00:06]} 16. Qd2 {[%emt 0:00:05]} Nf6 {[%emt 0:00:05]} 17. Qe3 {[%emt 0:00:10] and Nxe5 would now be decisive} Ng4 {[%emt 0:00:02] An uneventful encounter.   Weighted Error Value: White=0.04 (flawless) /Black=0.01 (flawless)   OK:         	White=5     	Black=9} 1/2-1/2

[Event "84th Georgian Championship 2025"]
[Site "Tbilisi"]
[Date "2025.02.03"]
[Round "1.4"]
[White "Petriashvili, Nikoloz"]
[Black "Kacharava, Nikolozi"]
[Result "1-0"]
[Annotator "TA"]
[ECO "C90"]
[WhiteElo "2450"]
[BlackElo "2524"]
[PlyCount "79"]
[EventDate "2025.02.03"]
[EventType "tourn"]
[EventCountry "GEO"]
[SourceTitle "playchess.com"]
[Source "ChessBase"]
[SourceQuality "1"]
[TimeControl "40/5400+30:1800+30"]

{[%evp 20,79,30,0,0,9,21,22,67,61,68,52,45,52,53,39,39,47,64,79,97,75,134,112,106,106,127,129,125,124,120,110,115,108,104,104,110,115,118,120,128,111,213,211,344,329,335,332,29986,797,905,613,905,905,941,924,931,924,2257,2179,2033,1589]} 1. e4 {[%emt 0:00:03]} e5 {[%emt 0:00:30]} 2. Nf3 {[%emt 0:00:05]} Nc6 {[%emt 0:00:07]} 3. Bb5 {[%emt 0:00:05]} a6 {[%emt 0:00:28]} 4. Ba4 {[%emt 0:00:06]} Nf6 {[%emt 0:00:42]} 5. O-O {[%emt 0:00:10]} Be7 {[%emt 0:00:40]} 6. Re1 {[%emt 0:00:52]} b5 {[%emt 0:00:17]} 7. Bb3 {[%emt 0:00:05]} d6 {[%emt 0:00:26]} 8. a4 {[%emt 0:00:37]} Bg4 {[%emt 0:01:12]} 9. c3 {[%emt 0:00:31]} O-O {[%emt 0:00:20]} 10. d3 {[%emt 0:00:48]} Na5 {[%emt 0:06:28]} 11. Bc2 {[%emt 0:00:22]} b4 {[%emt 0:00:25][%cal Ob4b3]} 12. Nbd2 {[%emt 0:01:50]} c5 {[%emt 0:03:46]} 13. h3 {[%emt 0:01:19]} Bd7 {[%emt 0:10:19] The position is equal.} 14. cxb4 {[%emt 0:04:14]} cxb4 {[%emt 0:00:08]} 15. Nb3 {[%emt 0:00:04]} Rc8 {[%emt 0:05:06]} 16. Nxa5 {[%emt 0:04:18]} Qxa5 {[%emt 0:00:03]} 17. Bb3 {[%emt 0:00:01]} Bc6 {[%emt 0:11:58]} 18. Nh4 {[%emt 0:04:53]} g6 {[%emt 0:00:51] Inhibits Nf5.} 19. Bh6 {[%emt 0:03:21]} Rfd8 {[%emt 0:09:21]} 20. Qf3 {[%emt 0:02:12]} Bd7 {[%emt 0:07:05] [#] Against Nf5} ({Better is} 20... Kh8) 21. Nf5 $1 {[%emt 0:02:17][%mdl 512]} gxf5 {[%emt 0:02:33]} 22. Qg3+ {[%emt 0:00:25]} Ng4 {[%emt 0:00:02]} 23. exf5 {[%emt 0:00:51]} Bxf5 {[%emt 0:00:11]} 24. Re4 {[%emt 0:00:55]} Kh8 {[%emt 0:21:44]} (24... Bxe4 $2 25. dxe4 (25. hxg4 $2 Bg6 $19) 25... Kh8 26. Qxg4 $18) 25. Rxg4 {[%emt 0:00:38]} Bxg4 {[%emt 0:00:13]} 26. Qxg4 {[%emt 0:01:08]} Bf8 {[%emt 0:05:33] Prevents Qg7+} 27. Bg5 {[%emt 0:00:44] White is much more active. A strong pair of Bishops.} Bg7 {[%emt 0:00:16] Inhibits Bf6.} 28. Bxd8 $40 {[%emt 0:00:28][%mdl 128] White attacks with force.} Qxd8 {[%emt 0:00:19] Black is weak on the light squares} 29. Bxf7 {[%emt 0:01:11]} a5 {[%emt 0:03:56]} 30. Re1 {[%emt 0:01:05]} Rc2 {[%emt 0:00:46]} (30... Qc7 $16) 31. Re3 $18 {[%emt 0:02:14]} Rxb2 {[%emt 0:06:26]} (31... Rc1+ $142 32. Kh2 Rc7) 32. Rg3 $1 {[%emt 0:01:31]} Qf8 {[%emt 0:00:12] [#]} 33. Rf3 {[%emt 0:00:43] Intending Bd5 and mate.} b3 $2 {[%emt 0:02:14] [#]} (33... e4 $18 34. Qxe4 (34. dxe4 Rb1+ 35. Kh2 Be5+ 36. g3 Rb2 $18) 34... Qd8) 34. Bxb3 $1 {[%emt 0:02:34][%mdl 512]} Rxb3 {[%emt 0:00:19] White is clearly winning.} (34... Qd8 35. Rf7) 35. Rxf8+ {[%emt 0:00:03]} Bxf8 {[%emt 0:00:07] KQ-KRB} 36. Qc8 {[%emt 0:01:08][%cal Rc8f8]} Rb1+ {[%emt 0:00:04]} 37. Kh2 {[%emt 0:00:04]} Kg8 {[%emt 0:00:05]} 38. Qa6 {[%emt 0:01:23]} Rd1 {[%emt 0:00:35]} 39. Qc4+ {[%emt 0:00:06]} Kh8 {[%emt 0:00:07]} 40. Qf7 {[%emt 0:00:00] Weighted Error Value: White=0.07 (flawless) /Black=0.53.  Mistake:       	White=1     	Black=4      Inaccurate:     	---       	Black=1      OK:         	White=13    	Black=7      Best:        	White=1     	Black=1      Strong:       	White=1     	---} 1-0

[Event "84th Georgian Championship 2025"]
[Site "Tbilisi"]
[Date "2025.02.03"]
[Round "1.5"]
[White "Pantsulaia, Levan"]
[Black "Sanikidze, Tornike"]
[Result "1-0"]
[Annotator "TA"]
[ECO "A13"]
[WhiteElo "2522"]
[BlackElo "2432"]
[PlyCount "113"]
[EventDate "2025.02.03"]
[EventType "tourn"]
[EventCountry "GEO"]
[SourceTitle "playchess.com"]
[Source "ChessBase"]
[SourceQuality "1"]
[TimeControl "40/5400+30:1800+30"]

{[%evp 14,113,15,10,3,13,11,8,22,25,22,18,20,5,20,25,20,19,34,17,64,54,65,68,70,20,31,9,43,13,33,31,62,77,74,19,13,35,34,33,17,6,62,50,57,55,62,59,69,0,8,0,119,58,72,71,68,70,73,73,254,209,265,258,543,520,731,719,654,427,903,925,799,507,505,480,1377,1428,1282,389,348,323,338,336,324,331,302,304,327,312,547,531,468,527,536,522,520,509,673,668,771,759]} 1. Nf3 {[%emt 0:00:04]} d5 {[%emt 0:00:23]} 2. g3 {[%emt 0:00:18]} Nf6 {[%emt 0:00:28]} 3. Bg2 {[%emt 0:00:19]} c5 {[%emt 0:02:48]} 4. c4 {[%emt 0:00:56]} d4 {[%emt 0:00:07]} 5. e3 {[%emt 0:00:36]} Nc6 {[%emt 0:05:48]} 6. exd4 {[%emt 0:00:09]} cxd4 {[%emt 0:00:14]} 7. O-O {[%emt 0:00:10]} e6 {[%emt 0:03:19]} 8. d3 {[%emt 0:00:08]} Bd6 {[%emt 0:02:52] A13: English Opening: 1...e6.} 9. Bg5 {[%emt 0:00:09]} h6 {[%emt 0:02:02]} 10. Bxf6 {[%emt 0:00:08]} Qxf6 {[%emt 0:00:05] The position is equal.} 11. Nbd2 {[%emt 0:00:10]} Qd8 {[%emt 0:00:41]} 12. Rc1 {[%emt 0:00:34]} O-O {[%emt 0:03:03]} 13. c5 {[%emt 0:03:24]} Bc7 {[%emt 0:05:46]} 14. Qa4 {[%emt 0:00:18]} a5 {[%emt 0:14:28]} 15. a3 {[%emt 0:01:44]} Ra6 {[%emt 0:03:43]} 16. Rfe1 {[%emt 0:01:43]} e5 {[%emt 0:10:56]} (16... Re8 $11) 17. Nc4 $14 {[%emt 0:01:28]} Re8 {[%emt 0:01:51]} 18. Nfd2 {[%emt 0:00:28]} f5 {[%emt 0:00:38] Wards off Ne4} 19. Qd1 $5 $146 {[%emt 0:11:36][%mdl 8] An interesting novelty.} (19. Nb6 $14) (19. Nd6 Bxd6 20. cxd6 Qxd6 21. Qb5 Kh7 22. Rc5 Bd7 23. Qxb7 Qxc5 24. Qxa6 Qc2 25. Nc4 {½-½ Harutyunian,T (2573)-Khademalsharieh,S (2490) Sharjah Masters 4th 2021 (3)}) 19... Kh7 $11 {[%emt 0:05:30]} 20. Qh5 {[%emt 0:01:35]} g6 {[%emt 0:05:35]} 21. Qf3 {[%emt 0:10:59]} Kg7 {[%emt 0:08:31]} 22. Qd5 {[%emt 0:02:00]} Qf6 {[%emt 0:17:32]} 23. Nd6 {[%emt 0:03:01]} Rd8 {[%emt 0:00:06]} 24. N2c4 {[%emt 0:01:02] White is much more active. A dynamic duo of knights.} (24. Qc4 $16) 24... Be6 {[%emt 0:00:22]} 25. Qf3 {[%emt 0:00:06]} Bxc4 {[%emt 0:02:03]} 26. Nxc4 {[%emt 0:00:55]} a4 $1 {[%emt 0:00:26]} 27. Qd1 {[%emt 0:02:22]} Rd7 {[%emt 0:00:27]} (27... h5 $11) 28. b4 {[%emt 0:02:32]} axb3 {[%emt 0:00:05]} 29. Qxb3 {[%emt 0:00:04]} Na5 {[%emt 0:04:10]} 30. Qb5 {[%emt 0:04:47]} Re7 {[%emt 0:00:13]} 31. Nd2 {[%emt 0:05:52]} (31. Bxb7 Nxb7 32. Qxb7 Ba5 33. Nxa5 Rxb7 34. Nxb7 Qc6 (34... Rxa3 35. c6 $11)) (31. a4 $14) 31... Ra7 {[%emt 0:00:41]} 32. c6 $36 {[%emt 0:08:37][%mdl 2048] White fights for an advantage.} e4 {[%emt 0:00:43]} 33. dxe4 {[%emt 0:04:59]} (33. cxb7 $1 $16 Rxb7 34. Qa4) 33... bxc6 $14 {[%emt 0:00:02]} 34. Qd3 {[%emt 0:00:20]} f4 {[%emt 0:00:18]} 35. Nf3 {[%emt 0:00:52]} fxg3 {[%emt 0:00:01]} 36. hxg3 {[%emt 0:00:13]} Bb6 $2 {[%emt 0:00:01] Black cannot hold the game after this.} (36... Rb7 $16) 37. e5 $18 {[%emt 0:02:51]} Qe6 {[%emt 0:01:56]} 38. Nh4 {[%emt 0:02:31][%cal Bf3h4,Bh4g6,Bg6f8,Bf8e6][%mdl 32] Be4 would now be deadly.} (38. Nxd4 Bxd4 39. Qxd4 Nb3 $17) 38... c5 $2 {[%emt 0:00:56] [#]} (38... Rac7 {keeps fighting.} 39. Rb1 Ba7) 39. Bd5 $1 {[%emt 0:01:23][%mdl 512]} Qxd5 {[%emt 0:00:36]} (39... Qg4 40. Qb1) 40. Qxg6+ {[%emt 0:00:00]} Kf8 {[%emt 0:00:00]} 41. Qxb6 {[%emt 0:01:00]} Nb3 {[%emt 0:06:55]} (41... Qe6 $142 42. Qb8+ (42. Qxc5 Nb3 $18) 42... Kg7 43. Rxc5 Nb3) 42. Ng6+ {[%emt 0:03:12]} (42. Qxh6+ Ke8 $18) 42... Kg8 {[%emt 0:00:09]} 43. Qf6 {[%emt 0:06:59][%cal Oe5e6]} Rg7 {[%emt 0:11:31]} 44. e6 {[%emt 0:01:16] Prevents Raf7.} Kh7 {[%emt 0:03:39]} (44... Ra8 $142 45. Re5 Qd6) 45. Nf8+ {[%emt 0:20:54]} Kg8 {[%emt 0:00:12]} 46. e7 $2 {[%emt 0:02:26]} (46. Nd7 {Threatening mate with e7.} Raxd7 47. exd7 (47. e7 $2 Rdxe7 48. Rxe7 Rxe7 $19) 47... Qxd7 48. Rb1) 46... Raxe7 {[%emt 0:00:25]} 47. Rxe7 {[%emt 0:00:05]} Rxe7 {[%emt 0:00:05]} 48. Qxe7 {[%emt 0:00:04][%cal Of8e6]} Nxc1 {[%emt 0:00:04][%mdl 4096] Endgame KQN-KQN} 49. Ne6 $1 {[%emt 0:00:26][%csl Ge6][%cal Re7g7]} Ne2+ {[%emt 0:00:10] [#]} 50. Kh2 $1 {[%emt 0:00:06][%csl Ge6][%cal Re7g7]} (50. Kf1 Nxg3+ 51. fxg3 Qf3+ 52. Ke1 Qe3+ 53. Kf1 (53. Kd1 Qf3+ 54. Ke1 Qxg3+ 55. Ke2 Qe3+ 56. Kf1 Qf3+ 57. Ke1 Qe3+ 58. Kd1 Qd3+ 59. Ke1 Qg3+ 60. Kf1 Qf3+ 61. Kg1 Qg3+ 62. Kh1 Qh3+ 63. Kg1 Qg3+ 64. Kf1 Qf3+ $11) 53... Qf3+ 54. Kg1 Qxg3+ 55. Kh1 Qh3+ 56. Kg1 Qg3+ 57. Kh1 Qh3+ 58. Kg1 Qg3+ $11) 50... Qh5+ {[%emt 0:00:11]} 51. Kg2 {[%emt 0:00:04]} Qf7 {[%emt 0:04:31]} (51... Qd5+ $2 52. f3 Qe5 53. Qe8+ (53. Qxc5 Qxe6 54. Qb5 Kf7 $19) 53... Kh7 54. Nf8+ Kg8 55. Qxe5 $18) (51... Qg6 52. Nxc5 Nf4+ 53. Kg1 (53. Kf3 Nd3 $18) 53... Nh3+ 54. Kf1 Ng5 55. Qd8+ Kh7 56. Qxd4 Qc6) 52. Qd8+ {[%emt 0:00:47] White is clearly winning.} (52. Qxc5 $2 {is the wrong capture.} Qxe6 53. Qb5 Qe4+ 54. f3 Qe3 55. Qd5+ Kg7 56. Qd7+ Kf6 57. Qd8+ Ke6 58. Qb6+ Kf7 59. Qb7+ Qe7 60. Qd5+ Kf6 $19) (52. Qxf7+ Kxf7 53. Nxc5 Ke7 $18) 52... Kh7 {[%emt 0:00:04] [#]} 53. Qd5 {[%emt 0:00:10]} ({Not} 53. Nxc5 Nf4+ 54. gxf4 Qg6+ 55. Kf3 (55. Kf1 Qb1+ 56. Kg2 Qg6+ 57. Kh2 Qh5+ 58. Kg3 Qxc5 $16) 55... Qh5+ 56. Ke4 Qxc5 $16) 53... Kg6 {[%emt 0:04:59] Prevents Ng5.} 54. Qe4+ {[%emt 0:00:12]} Kf6 {[%emt 0:00:14]} 55. Nxc5 {[%emt 0:00:15]} Qa2 {[%emt 0:02:43]} 56. a4 {[%emt 0:00:54]} Kg7 {[%emt 0:01:17]} 57. Qf5 {[%emt 0:01:02] Weighted Error Value: White=0.39/Black=0.67  Loses game:     	---       	Black=1      Mistake:       	White=4     	Black=6      Inaccurate:     	White=1     	Black=4      OK:         	White=18    	Black=13     Best:        	White=6     	Black=9      Strong:       	White=2     	Black=1      Brilliant:      	White=1     	---} 1-0